fUSD/lending_fUSD_20241028
["ID","MTS","AMOUNT","RATE_DAILY","PERIOD"]
[340941804,1730140246077,-23628.64168513,0.000407,2]
[340941805,1730140246087,-151.0,0.000407,14]
[340941806,1730140246097,-151.0,0.000407,14]
[340941807,1730140246107,-151.0,0.000407,7]
[340941808,1730140246117,-151.0,0.000407,14]
[340941809,1730140246127,-151.0,0.000407,14]
[340941810,1730140246137,-151.0,0.000407,14]
[340941811,1730140246147,-170.038206,0.000407,14]
[340941812,1730140246157,-151.0,0.000407,14]
[340941813,1730140246166,-151.0,0.000407,14]
[340941814,1730140246176,-151.0,0.000407,14]
[340941815,1730140246186,-151.0,0.000407,14]
[340941816,1730140246196,-156.218063,0.000407,14]
[340941817,1730140246206,-151.0,0.000407,14]
[340941818,1730140246216,-151.0,0.000407,14]
[340941819,1730140246226,-151.0,0.000407,14]
[340941820,1730140246241,-151.0,0.000407,14]
[340941821,1730140246250,-151.0,0.000407,14]
[340941822,1730140246261,-151.0,0.000407,14]
[340941823,1730140246271,-151.0,0.000407,14]
[340941824,1730140246281,-151.0,0.000407,14]
[340941825,1730140246291,-406.406825,0.000407,14]
[340941826,1730140246300,-406.406825,0.000407,14]
[340941827,1730140246310,-406.406825,0.000407,14]
[340941828,1730140246320,-406.406825,0.000407,14]
[340941829,1730140246329,-151.0,0.000407,14]
[340941830,1730140246339,-151.0,0.000407,14]
[340941831,1730140246348,-151.0,0.000407,14]
[340941832,1730140246358,-151.0,0.000407,14]
[340941833,1730140246367,-160.15543,0.000407,14]
[340941834,1730140246376,-594.57441885,0.00040799,2]
[340941835,1730140246386,-500.0,0.00040799,3]
[340941836,1730140246395,-2889.63883065,0.000408,2]
[340941837,1730140246405,-11685.25553481,0.000408,2]
[340941838,1730140246414,-169.2872487,0.000408,2]
[340941839,1730140246424,-4300.0,0.000408,14]
[340941840,1730140246433,-500.0,0.00040873,3]
[340941841,1730140246443,-500.0,0.00040873,3]
[340941842,1730140246452,-500.0,0.00040873,3]
[340941843,1730140246462,-403.55078561,0.00040873,3]
[340941844,1730140246471,-537.25202306,0.00040873,3]
[340941845,1730140246483,-500.0,0.00040873,3]
[340941846,1730140246493,-317.80468874,0.00040873,3]
[340941847,1730140246502,-219.75812521,0.00040873,3]
[340941848,1730140246511,-500.0,0.00040873,3]
[340941849,1730140246520,-477.85278007,0.00040873,3]
[340941850,1730140246531,-580.8282393,0.00040873,3]
[340941851,1730140246540,-459.54390278,0.00040873,3]
[340941852,1730140246549,-500.0,0.00040873,3]
[340941853,1730140246559,-500.0,0.00040873,3]
[340941854,1730140246569,-572.24488276,0.00040873,3]
[340941855,1730140246579,-313.16283232,0.00040873,3]
[340941856,1730140246588,-500.0,0.00040873,3]
[340941857,1730140246598,-500.0,0.00040873,3]
[340941858,1730140246607,-500.0,0.00040873,3]
[340941859,1730140246617,-516.06920198,0.00040873,3]
[340941860,1730140246626,-625.91340684,0.00040873,3]
[340941861,1730140246635,-221.55911381,0.00040873,3]
[340941862,1730140246644,-566.83263589,0.00040873,3]
[340941863,1730140246653,-500.0,0.00040873,3]
[340941864,1730140246663,-421.5102,0.00040873,3]
[340941865,1730140246672,-287.23076485,0.00040873,3]
[340941866,1730140246681,-500.0,0.00040873,3]
[340941867,1730140246691,-1048.34,0.00040873,3]
[340941868,1730140246700,-500.0,0.00040873,3]
[340941869,1730140246710,-500.0,0.00040873,3]
[340941870,1730140246719,-500.0,0.00040873,3]
[340941871,1730140246732,-2242.85,0.00040873,3]
[340941872,1730140246741,-500.0,0.00040873,3]
[340941873,1730140246751,-236.95300006,0.00040873,3]
[340941874,1730140246760,-500.0,0.00040873,3]
[340941875,1730140246769,-500.0,0.00040873,3]
[340941876,1730140246779,-234.26530303,0.00040873,3]
[340941877,1730140246789,-557.38152906,0.00040873,3]
[340941878,1730140246798,-210.90137884,0.00040873,3]
[340941879,1730140246807,-537.04,0.00040873,3]
[340941880,1730140246817,-500.0,0.00040873,3]
[340941881,1730140246827,-360.72297111,0.00040873,3]
[340941882,1730140246836,-354.161627,0.00040873,3]
[340941883,1730140246845,-411.45787574,0.00040873,3]
[340941884,1730140246855,-527.74519841,0.00040873,3]
[340941885,1730140246864,-500.0,0.00040873,3]
[340941886,1730140246874,-500.0,0.00040873,3]
[340941887,1730140246884,-500.0,0.00040873,3]
[340941888,1730140246894,-500.0,0.00040873,3]
[340941889,1730140246904,-226.0,0.00040877,120]
[340941890,1730140246917,-500.0,0.00040899,3]
[340941891,1730140246926,-500.0,0.00040899,3]
[340941892,1730140246936,-500.0,0.00040899,3]
[340941893,1730140246945,-609.27665122,0.00040899,3]
[340941894,1730140246955,-500.0,0.00040899,3]
[340941895,1730140246964,-151.0,0.00040899,14]
[340941896,1730140246974,-10603.64,0.00040899,120]
[340941897,1730140246988,-406.406825,0.00040899,14]
[340941898,1730140246998,-406.406825,0.00040899,14]
[340941899,1730140247007,-156.0,0.000409,5]
[340941900,1730140247017,-88976.95079334,0.000409,2]
[340941902,1730140501803,299.0,0.00019725,2]
[340941908,1730141238346,161.39,0.00015342,2]
[340941935,1730141382503,150.0,0.00017605,2]
[340941937,1730141431928,-185.0,0.000225,6]
[340941939,1730141431939,-200.0,0.000273,2]
[340941941,1730141431949,-628.76,0.00037392,2]
[340941943,1730141431959,-223.42701441,0.00038052,2]
[340941945,1730141431970,-1981.57298559,0.00038052,2]
[340941947,1730141431980,-5139.3953312,0.00038145,2]
[340941948,1730141431989,-316.0765,0.00038145,2]
[340941950,1730141431998,-668.93,0.00039261,2]
[340941951,1730141432007,-499.99,0.00039261,2]
[340941952,1730141432018,-250.0,0.00039475,2]
[340941953,1730141432027,-202.98,0.00039511,120]
[340941954,1730141432036,-250.0,0.00039542,120]
[340941955,1730141432046,-150.0,0.00039546,7]
[340941956,1730141432055,-628.76,0.00039655,2]
[340941957,1730141432065,-331.07,0.00039738,2]
[340941958,1730141432075,-176.44,0.00039989,2]
[340941959,1730141432087,-2861.99599225,0.0004,2]
[340941960,1730141432098,-10503.4581,0.00040399,2]
[340941961,1730141432109,-1000.0,0.00040399,2]
[340941962,1730141432120,-2500.0,0.00040399,2]
[340941963,1730141432133,-476.411,0.00040399,57]
[340941964,1730141432142,-26192.3669,0.000404,2]
[340941965,1730141432154,-170.1902799,0.000404,28]
[340941966,1730141432163,-500.0,0.00040498,31]
[340941967,1730141432173,-500.0,0.00040498,2]
[340941968,1730141432182,-500.0,0.00040498,3]
[340941969,1730141432191,-837.07,0.00040498,2]
[340941970,1730141432201,-500.0,0.00040498,3]
[340941971,1730141432210,-226.11059239,0.00040498,3]
[340941972,1730141432219,-238.95328571,0.00040498,3]
[340941973,1730141432229,-500.0,0.00040498,3]
[340941974,1730141432238,-500.0,0.00040498,3]
[340941975,1730141432248,-500.0,0.00040498,3]
[340941976,1730141432258,-500.0,0.00040498,3]
[340941977,1730141432267,-183.71387948,0.00040498,3]
[340941978,1730141432277,-500.0,0.00040498,3]
[340941979,1730141432286,-500.0,0.00040498,3]
[340941980,1730141432296,-500.0,0.00040498,3]
[340941981,1730141432305,-452.65454829,0.00040498,3]
[340941982,1730141432317,-47.34545171,0.00040498,3]
[340941983,1730141432327,-150.0,0.00040498,3]
[340941984,1730141432336,-500.0,0.00040498,3]
[340941985,1730141432346,-227.65662204,0.00040498,3]
[340941986,1730141432357,-303.4456781,0.00040498,3]
[340941987,1730141432368,-36.74883503,0.00040498,3]
[340941988,1730141432378,-258.85548687,0.00040498,3]
[340941989,1730141432389,-241.14451313,0.00040498,3]
[340941990,1730141432400,-500.0,0.00040498,3]
[340941991,1730141432409,-8.75608687,0.00040498,3]
[340941992,1730141432420,-161.28601688,0.00040498,3]
[340941993,1730141432431,-500.0,0.00040498,3]
[340941994,1730141432440,-500.0,0.00040498,3]
[340941995,1730141432450,-500.0,0.00040498,3]
[340941996,1730141432459,-457.37631447,0.00040498,3]
[340941997,1730141432469,-500.00000001,0.00040498,3]
[340941998,1730141432478,-500.0,0.00040498,3]
[340941999,1730141432487,-632.13634842,0.00040498,3]
[340942000,1730141432497,-500.0,0.00040498,3]
[340942001,1730141432507,-513.24371161,0.00040498,3]
[340942002,1730141432516,-500.0,0.00040498,3]
[340942003,1730141432526,-500.0,0.00040498,3]
[340942004,1730141432535,-500.0,0.00040498,3]
[340942005,1730141432545,-500.0,0.00040498,3]
[340942006,1730141432554,-558.58910645,0.00040498,3]
[340942007,1730141432563,-549.64472692,0.00040498,3]
[340942008,1730141432573,-311.39527544,0.00040498,3]
[340942009,1730141432582,-500.0,0.00040498,3]
[340942010,1730141432591,-500.0,0.00040498,3]
[340942011,1730141432601,-500.0,0.00040498,3]
[340942012,1730141432610,-381.58167639,0.00040498,3]
[340942013,1730141432620,-500.0,0.00040498,3]
[340942014,1730141432630,-500.0,0.00040498,3]
[340942015,1730141432640,-588.57841977,0.00040498,3]
[340942016,1730141432650,-240.85291038,0.00040498,3]
[340942017,1730141432662,-500.0,0.00040498,3]
[340942018,1730141432671,-535.17561095,0.00040498,3]
[340942019,1730141432691,-517.09949389,0.00040498,3]
[340942020,1730141432703,-500.0,0.00040498,3]
[340942021,1730141432713,-500.0,0.00040498,3]
[340942022,1730141432724,-533.12165488,0.00040498,3]
[340942023,1730141432735,-500.0,0.00040498,3]
[340942024,1730141432746,-500.0,0.00040498,3]
[340942025,1730141432758,-500.0,0.00040498,3]
[340942026,1730141432768,-503.28143416,0.00040498,3]
[340942027,1730141432777,-1050.87,0.00040498,3]
[340942028,1730141432787,-514.25475291,0.00040498,3]
[340942029,1730141432796,-523.68382157,0.00040498,3]
[340942030,1730141432806,-500.0,0.00040498,3]
[340942031,1730141432815,-521.93830524,0.00040498,3]
[340942032,1730141432826,-500.0,0.00040498,3]
[340942033,1730141432836,-522.35176226,0.00040498,3]
[340942034,1730141432846,-500.0,0.00040498,3]
[340942035,1730141432856,-500.0,0.00040498,3]
[340942036,1730141432866,-510.76330294,0.00040498,3]
[340942037,1730141432876,-500.0,0.00040498,3]
[340942038,1730141432887,-324.22435636,0.00040498,3]
[340942039,1730141432897,-565.36671004,0.00040498,3]
[340942040,1730141432908,-515.93,0.00040498,3]
[340942041,1730141432919,-211.56343111,0.00040498,3]
[340942042,1730141432928,-523.89196963,0.00040498,3]
[340942043,1730141432940,-500.0,0.00040498,3]
[340942044,1730141432949,-500.0,0.00040498,3]
[340942045,1730141432958,-2055.95,0.00040498,3]
[340942046,1730141432967,-500.0,0.00040498,3]
[340942047,1730141432978,-520.53187276,0.00040498,3]
[340942048,1730141432988,-960.98,0.00040498,3]
[340942049,1730141432997,-500.0,0.00040498,3]
[340942050,1730141433007,-500.0,0.00040498,3]
[340942051,1730141433017,-500.0,0.00040498,3]
[340942052,1730141433026,-539.21628959,0.00040498,3]
[340942053,1730141433036,-500.0,0.00040498,3]
[340942054,1730141433045,-540.08816981,0.00040498,3]
[340942055,1730141433055,-500.0,0.00040498,3]
[340942056,1730141433303,-500.0,0.00040498,3]
[340942057,1730141433315,-507.39634274,0.00040498,3]
[340942058,1730141433325,-500.0,0.00040498,3]
[340942059,1730141433335,-500.0,0.00040498,3]
[340942060,1730141433345,-563.91832285,0.00040498,3]
[340942061,1730141433355,-500.0,0.00040498,3]
[340942062,1730141433364,-559.31438815,0.00040498,3]
[340942063,1730141433374,-7500.0,0.00040498,120]
[340942064,1730141433384,-158.31747951,0.00040498,3]
[340942065,1730141433393,-395.34287307,0.00040498,3]
[340942066,1730141433403,-562.28638391,0.00040498,3]
[340942067,1730141433413,-100000.0,0.00040499,2]
[340942068,1730141433423,-121282.2443,0.00040499,2]
[340942069,1730141433432,-12141.92034473,0.000405,2]
[340942070,1730141433443,-1770.89759522,0.000405,2]
[340942071,1730141433455,-500.0,0.00040599,3]
[340942072,1730141433479,-500.0,0.00040599,3]
[340942073,1730141433503,-500.0,0.00040599,3]
[340942074,1730141433527,-503.08000572,0.00040599,2]
[340942075,1730141433550,-500.0,0.00040599,3]
[340942076,1730141433572,-500.0,0.00040599,3]
[340942077,1730141433598,-500.0,0.00040599,3]
[340942078,1730141433625,-500.0,0.00040599,2]
[340942079,1730141433654,-500.0,0.00040599,3]
[340942080,1730141433676,-500.0,0.00040599,3]
[340942081,1730141433706,-1819.07,0.00040599,3]
[340942082,1730141433717,-310.06808277,0.00040599,3]
[340942083,1730141433727,-513.14493781,0.00040599,3]
[340942084,1730141433737,-500.0,0.00040599,3]
[340942085,1730141433747,-526.78404282,0.00040599,3]
[340942086,1730141433756,-500.0,0.00040599,3]
[340942087,1730141433766,-500.0,0.00040599,3]
[340942088,1730141433776,-500.0,0.00040599,3]
[340942089,1730141433787,-321.66272698,0.00040599,3]
[340942090,1730141433797,-231.37630354,0.00040599,3]
[340942091,1730141433807,-500.0,0.00040599,3]
[340942092,1730141433816,-500.0,0.00040599,3]
[340942093,1730141433826,-500.0,0.00040599,3]
[340942094,1730141433836,-500.0,0.00040599,3]
[340942095,1730141433846,-582.55,0.00040599,3]
[340942096,1730141433856,-500.0,0.00040599,3]
[340942097,1730141433865,-500.0,0.00040599,3]
[340942098,1730141433875,-500.0,0.00040599,3]
[340942099,1730141433885,-551.00112024,0.00040599,3]
[340942100,1730141433894,-180.78749954,0.00040599,3]
[340942101,1730141433903,-500.0,0.00040599,3]
[340942102,1730141433913,-160.86856627,0.00040599,3]
[340942103,1730141433923,-155.88273074,0.00040599,3]
[340942104,1730141433933,-500.0,0.00040599,3]
[340942105,1730141433942,-500.0,0.00040599,3]
[340942106,1730141433952,-500.0,0.00040599,3]
[340942107,1730141433961,-171.84353568,0.00040599,3]
[340942108,1730141433971,-703.89,0.00040599,3]
[340942109,1730141433980,-500.0,0.00040599,3]
[340942110,1730141433990,-500.0,0.00040599,3]
[340942111,1730141434000,-1052.42,0.00040599,3]
[340942112,1730141434010,-544.81063842,0.00040599,3]
[340942113,1730141434019,-432.44630583,0.00040599,3]
[340942114,1730141434029,-514.40747245,0.00040599,3]
[340942115,1730141434039,-500.0,0.00040599,3]
[340942116,1730141434048,-500.0,0.00040599,3]
[340942117,1730141434057,-500.0,0.00040599,3]
[340942118,1730141434066,-500.0,0.00040599,3]
[340942119,1730141434076,-500.0,0.00040599,3]
[340942120,1730141434085,-644.7773645,0.00040599,3]
[340942121,1730141434095,-500.0,0.00040599,3]
[340942122,1730141434104,-160.36842845,0.00040599,3]
[340942123,1730141434113,-570.69284755,0.00040599,3]
[340942124,1730141434123,-156.17560068,0.00040599,3]
[340942125,1730141434133,-514.56624736,0.00040599,3]
[340942126,1730141434143,-500.0,0.00040599,3]
[340942127,1730141434153,-373.76531884,0.00040599,3]
[340942128,1730141434163,-500.0,0.00040599,3]
[340942129,1730141434172,-500.0,0.00040599,3]
[340942130,1730141434182,-579.59803789,0.00040599,3]
[340942131,1730141434191,-500.0,0.00040599,7]
[340942132,1730141434201,-500.0,0.00040599,3]
[340942133,1730141434211,-500.0,0.00040599,3]
[340942134,1730141434220,-500.0,0.00040599,3]
[340942135,1730141434229,-500.0,0.00040599,3]
[340942136,1730141434239,-500.0,0.00040599,2]
[340942137,1730141434248,-229.62885973,0.00040599,3]
[340942138,1730141434258,-500.0,0.00040599,3]
[340942139,1730141434267,-500.0,0.00040698,2]
[340942140,1730141434278,-500.0,0.00040699,2]
[340942141,1730141434288,-226.55494062,0.00040699,2]
[340942142,1730141434297,-233.44315474,0.00040699,3]
[340942143,1730141434315,-62.66943065,0.00040699,3]
[340942144,1730141434324,-999.3,0.00040699,3]
[340942145,1730141434334,-202.56876965,0.00040699,3]
[340942146,1730141434343,-500.0,0.00040772,2]
[340942147,1730141434353,-500.0,0.00040772,3]
[340942148,1730141434362,-837.07,0.00040772,2]
[340942149,1730141434372,-163.0917997,0.00040772,3]
[340942150,1730141434383,-150.59066883,0.00040772,3]
[340942151,1730141434394,-500.0,0.00040772,3]
[340942152,1730141434403,-500.0,0.00040772,3]
[340942153,1730141434412,-500.0,0.00040772,3]
[340942154,1730141434422,-500.0,0.00040772,3]
[340942155,1730141434432,-574.12172087,0.00040772,3]
[340942156,1730141434441,-500.0,0.00040772,3]
[340942157,1730141434450,-500.0,0.00040772,3]
[340942158,1730141434460,-500.0,0.00040772,3]
[340942159,1730141434469,-150.0,0.00040772,3]
[340942160,1730141434477,-556.40952743,0.00040772,3]
[340942161,1730141434487,-586.67904926,0.00040772,3]
[340942162,1730141434496,-500.0,0.00040772,3]
[340942163,1730141434506,-500.0,0.00040772,3]
[340942164,1730141434515,-500.0,0.00040772,3]
[340942165,1730141434526,-500.0,0.00040772,3]
[340942166,1730141434535,-332.28219112,0.00040772,3]
[340942167,1730141434544,-500.0,0.00040772,3]
[340942168,1730141434554,-500.0,0.00040772,3]
[340942169,1730141434563,-498.8770137,0.00040772,3]
[340942170,1730141434572,-500.0,0.00040772,3]
[340942171,1730141434582,-500.0,0.00040772,3]
[340942172,1730141434591,-500.0,0.00040772,3]
[340942173,1730141434600,-500.0,0.00040772,3]
[340942174,1730141434610,-500.0,0.00040772,3]
[340942175,1730141434619,-500.0,0.00040772,3]
[340942176,1730141434628,-500.0,0.00040772,3]
[340942177,1730141434638,-500.0,0.00040772,3]
[340942178,1730141434647,-500.0,0.00040772,3]
[340942179,1730141434657,-500.0,0.00040772,3]
[340942180,1730141434670,-500.0,0.00040772,3]
[340942181,1730141434679,-1050.87,0.00040772,3]
[340942182,1730141434691,-500.0,0.00040772,3]
[340942183,1730141434700,-534.50976931,0.00040772,3]
[340942184,1730141434710,-500.0,0.00040772,3]
[340942185,1730141434720,-515.93,0.00040772,3]
[340942186,1730141434729,-500.0,0.00040772,3]
[340942187,1730141434740,-2055.95,0.00040772,3]
[340942188,1730141434749,-960.98,0.00040772,3]
[340942189,1730141434758,-374.81545028,0.00040772,3]
[340942190,1730141434767,-462.09447544,0.00040772,3]
[340942191,1730141434777,-353.60237731,0.00040772,3]
[340942192,1730141434786,-500.0,0.00040772,3]
[340942193,1730141434795,-500.0,0.00040772,3]
[340942194,1730141434804,-500.0,0.00040772,3]
[340942195,1730141434813,-500.0,0.00040772,3]
[340942196,1730141434822,-228.986702,0.00040863,14]
[340942197,1730141434833,-501.40962196,0.00040873,3]
[340942198,1730141434843,-499.24005151,0.00040873,3]
[340942199,1730141434852,-500.0,0.00040873,3]
[340942200,1730141434861,-500.0,0.00040873,3]
[340942201,1730141434870,-400.00000001,0.00040873,3]
[340942202,1730141434879,-520.73158788,0.00040873,3]
[340942203,1730141434889,-500.0,0.00040873,3]
[340942204,1730141434899,-1819.07,0.00040873,3]
[340942205,1730141434908,-500.0,0.00040873,3]
[340942206,1730141434918,-500.0,0.00040873,3]
[340942207,1730141434927,-500.0,0.00040873,3]
[340942208,1730141434938,-500.0,0.00040873,3]
[340942209,1730141434947,-535.17084842,0.00040873,3]
[340942210,1730141434957,-500.0,0.00040873,3]
[340942211,1730141434966,-500.0,0.00040873,3]
[340942212,1730141434977,-582.55,0.00040873,3]
[340942213,1730141434991,-581.92035739,0.00040873,3]
[340942214,1730141435000,-500.0,0.00040873,3]
[340942215,1730141435009,-500.0,0.00040873,3]
[340942216,1730141435019,-500.0,0.00040873,3]
[340942217,1730141435028,-500.0,0.00040873,3]
[340942218,1730141435037,-500.0,0.00040873,3]
[340942219,1730141435046,-311.4265435,0.00040873,3]
[340942220,1730141435055,-703.89,0.00040873,3]
[340942221,1730141435064,-500.0,0.00040873,3]
[340942222,1730141435073,-576.99379579,0.00040873,3]
[340942223,1730141435082,-1052.42,0.00040873,3]
[340942224,1730141435091,-500.0,0.00040873,3]
[340942225,1730141435100,-500.0,0.00040873,3]
[340942226,1730141435110,-500.0,0.00040873,3]
[340942227,1730141435118,-500.0,0.00040873,3]
[340942228,1730141435127,-500.0,0.00040873,3]
[340942229,1730141435136,-500.0,0.00040873,3]
[340942230,1730141435145,-500.0,0.00040873,3]
[340942231,1730141435155,-500.0,0.00040873,3]
[340942232,1730141435163,-575.98044028,0.00040873,3]
[340942233,1730141435173,-500.0,0.00040873,7]
[340942234,1730141435182,-500.0,0.00040873,3]
[340942235,1730141435192,-500.0,0.00040873,3]
[340942236,1730141435201,-500.0,0.00040873,3]
[340942237,1730141435211,-500.0,0.00040873,3]
[340942238,1730141435220,-500.0,0.00040873,2]
[340942239,1730141435229,-500.0,0.00040873,3]
[340942240,1730141435239,-4687.12,0.0004088,30]
[340942241,1730141435248,-3102.30777122,0.0004089,9]
[340942242,1730141435257,-239.93699021,0.0004089,2]
[340942243,1730141435266,-594.57441885,0.00040899,2]
[340942244,1730141435276,-7500.0,0.00040899,120]
[340942245,1730141435286,-152851.62746815,0.000409,2]
[340942246,1730141435295,-151.0,0.000409,14]
[340942247,1730141435305,-200.0,0.000409,7]
[340942248,1730141435314,-151.0,0.000409,14]
[340942249,1730141435323,-151.0,0.000409,14]
[340942250,1730141435333,-151.0,0.000409,7]
[340942251,1730141435343,-151.0,0.000409,14]
[340942252,1730141435353,-4100.0,0.000409,14]
[340942253,1730141435362,-151.0,0.000409,14]
[340942254,1730141435371,-284.484778,0.000409,14]
[340942255,1730141435380,-999.3,0.00040973,3]
[340942256,1730141435390,-1551.15388561,0.0004098,9]
[340942257,1730141435399,-3102.30777122,0.0004099,9]
[340942258,1730141435408,-29894.98947972,0.00041,2]
[340942259,1730141435421,-25091.01052028,0.00041,2]
[340942260,1730141435430,-804.30849422,0.00041,60]
[340942261,1730141435441,-7141.0,0.00041,3]
[340942262,1730141435451,-167.0,0.00041033,2]
[340942263,1730141435460,-1551.15388561,0.00041036,9]
[340942264,1730141435470,-1551.15388561,0.00041042,9]
[340942265,1730141435479,-7500.0,0.00041045,120]
[340942266,1730141435488,-500.0,0.00041046,2]
[340942267,1730141435498,-500.0,0.00041046,3]
[340942268,1730141435508,-837.07,0.00041046,2]
[340942269,1730141435517,-500.0,0.00041046,3]
[340942270,1730141435526,-500.0,0.00041046,3]
[340942271,1730141435535,-500.0,0.00041046,3]
[340942272,1730141435545,-500.0,0.00041046,3]
[340942273,1730141435554,-240.33823744,0.00041046,3]
[340942274,1730141435563,-500.0,0.00041046,3]
[340942275,1730141435572,-500.0,0.00041046,3]
[340942276,1730141435582,-150.0,0.00041046,3]
[340942277,1730141435591,-500.0,0.00041046,3]
[340942278,1730141435600,-500.0,0.00041046,3]
[340942279,1730141435609,-151.0,0.00041046,14]
[340942280,1730141435619,-500.0,0.00041046,3]
[340942281,1730141435629,-151.0,0.00041046,7]
[340942282,1730141435639,-500.0,0.00041046,3]
[340942283,1730141435648,-500.0,0.00041046,3]
[340942284,1730141435658,-500.0,0.00041046,3]
[340942285,1730141435670,-500.0,0.00041046,3]
[340942286,1730141435680,-500.0,0.00041046,3]
[340942287,1730141435692,-500.0,0.00041046,3]
[340942288,1730141435701,-500.0,0.00041046,3]
[340942289,1730141435711,-500.0,0.00041046,3]
[340942290,1730141435720,-500.0,0.00041046,3]
[340942291,1730141435729,-500.0,0.00041046,3]
[340942292,1730141435738,-500.0,0.00041046,3]
[340942293,1730141435747,-500.0,0.00041046,3]
[340942294,1730141435757,-500.0,0.00041046,3]
[340942295,1730141435766,-528.16409879,0.00041046,3]
[340942296,1730141435775,-1050.87,0.00041046,3]
[340942297,1730141435784,-500.0,0.00041046,3]
[340942298,1730141435793,-500.0,0.00041046,3]
[340942299,1730141435803,-515.93,0.00041046,3]
[340942300,1730141435812,-430.23120128,0.00041046,3]
[340942301,1730141435820,-2055.95,0.00041046,3]
[340942302,1730141435830,-960.98,0.00041046,3]
[340942303,1730141435839,-500.0,0.00041046,3]
[340942304,1730141435848,-500.0,0.00041046,3]
[340942305,1730141435857,-500.0,0.00041046,3]
[340942306,1730141435866,-500.0,0.00041046,3]
[340942307,1730141435876,-2205.0,0.00041052,2]
[340942308,1730141435885,-284.484778,0.00041052,14]
[340942309,1730141435894,-151.0,0.00041095,14]
[340942310,1730141435904,-500.0,0.00041095,2]
[340942311,1730141435914,-1511.59,0.00041095,120]
[340942312,1730141435923,-1511.59,0.00041095,120]
[340942313,1730141435934,-1511.59,0.00041095,120]
[340942314,1730141435943,-500.0,0.00041095,3]
[340942315,1730141435953,-500.0,0.00041095,3]
[340942316,1730141435962,-500.0,0.00041095,3]
[340942317,1730141435971,-162.5,0.00041096,30]
[340942318,1730141435981,-157.0,0.00041096,2]
[340942319,1730141435990,-151.0,0.00041096,7]
[340942320,1730141436000,-151.0,0.00041096,7]
[340942321,1730141436009,-151.0,0.00041096,14]
[340942322,1730141436018,-238.291096,0.00041096,14]
[340942323,1730141436027,-150.0,0.00041096,2]
[340942324,1730141436037,-480.91845459,0.000411,2]
[340942325,1730141436046,-549.54650794,0.000411,2]
[340942326,1730141436055,-1371.0,0.000411,2]
[340942327,1730141436064,-3102.30777122,0.00041137,9]
[340942328,1730141436074,-151.0,0.00041147,14]
[340942329,1730141436083,-500.0,0.00041147,3]
[340942330,1730141436092,-520.0937766,0.00041147,3]
[340942331,1730141436102,-500.0,0.00041147,3]
[340942332,1730141436111,-1819.07,0.00041147,3]
[340942333,1730141436120,-500.0,0.00041147,3]
[340942334,1730141436130,-500.0,0.00041147,3]
[340942335,1730141436139,-500.0,0.00041147,3]
[340942336,1730141436148,-512.47080745,0.00041147,3]
[340942337,1730141436158,-500.0,0.00041147,3]
[340942338,1730141436167,-516.48412927,0.00041147,3]
[340942339,1730141436176,-582.55,0.00041147,3]
[340942340,1730141436186,-500.0,0.00041147,3]
[340942341,1730141436196,-500.0,0.00041147,3]
[340942342,1730141436205,-500.0,0.00041147,3]